[Event "13th Leiden Crown Group 2019"]
[Site "Leiden"]
[Date "2019.07.14"]
[Round "3.7"]
[White "De Jong, Migchiel"]
[Black "Beerdsen, Thomas"]
[Result "1/2-1/2"]
[ECO "E19"]
[WhiteElo "2345"]
[BlackElo "2497"]
[Annotator "ChessBase"]
[PlyCount "123"]
[EventDate "2019.07.08"]
[EventType "tourn"]
[EventCountry "NED"]
[SourceTitle "playchess.com"]
[Source "ChessBase"]
[SourceQuality "1"]
[TimeControl "40/5400+30:1800+30"]

1. Nf3 {[%emt 0:00:00]} Nf6 {[%emt 0:01:04]} 2. c4 {[%emt 0:00:20]} b6 {[%emt 0:00:34]} 3. g3 {[%emt 0:00:28]} Bb7 {[%emt 0:00:18]} 4. Bg2 {[%emt 0:00:07]} e6 {[%emt 0:01:26]} 5. d4 {[%emt 0:01:04]} Be7 {[%emt 0:00:12]} 6. O-O {[%emt 0:00:18]} O-O {[%emt 0:00:04]} 7. Nc3 {[%emt 0:03:40]} Ne4 {[%emt 0:00:18]} 8. Qc2 {[%emt 0:00:29]} Nxc3 {[%emt 0:00:56]} 9. Qxc3 {[%emt 0:00:14]} c5 {[%emt 0:02:56]} 10. Rd1 {[%emt 0:02:07]} Bf6 {[%emt 0:07:37]} 11. Qd3 {[%emt 0:01:16]} Nc6 {[%emt 0:08:02]} 12. d5 {[%emt 0:02:45]} Nb4 {[%emt 0:04:31]} 13. Qb1 {[%emt 0:01:42]} exd5 {[%emt 0:00:34]} 14. a3 {[%emt 0:00:13]} Nc6 {[%emt 0:07:18]} 15. cxd5 {[%emt 0:01:19]} Nd4 {[%emt 0:01:34]} 16. Nxd4 {[%emt 0:00:36]} Bxd4 {[%emt 0:03:46]} 17. e3 {[%emt 0:01:04]} Bf6 {[%emt 0:06:08]} 18. Bd2 {[%emt 0:00:53]} d6 {[%emt 0:02:34]} 19. a4 {[%emt 0:09:20]} a6 {[%emt 0:01:30]} 20. Bc3 {[%emt 0:00:34]} b5 {[%emt 0:00:46]} 21. axb5 {[%emt 0:00:43]} axb5 {[%emt 0:00:06]} 22. Rxa8 {[%emt 0:00:14]} Bxa8 {[%emt 0:00:05]} 23. Qf5 {[%emt 0:01:23]} Bxc3 {[%emt 0:03:10]} 24. bxc3 {[%emt 0:00:06]} g6 {[%emt 0:03:36]} 25. Qf4 {[%emt 0:00:38]} Qe7 {[%emt 0:06:43]} 26. Ra1 {[%emt 0:02:44]} Rb8 {[%emt 0:02:50]} 27. Ra6 {[%emt 0:01:42]} b4 {[%emt 0:00:33]} 28. cxb4 {[%emt 0:00:27]} cxb4 {[%emt 0:00:05]} 29. Rxd6 {[%emt 0:00:18]} Qe8 {[%emt 0:08:15]} 30. Rd7 {[%emt 0:03:00]} Rc8 {[%emt 0:01:54]} 31. Rc7 {[%emt 0:05:07]} b3 {[%emt 0:00:59]} 32. d6 {[%emt 0:01:00]} Rxc7 {[%emt 0:11:41]} 33. dxc7 {[%emt 0:00:24]} Bxg2 {[%emt 0:00:19]} 34. Kxg2 {[%emt 0:03:30]} Qc6+ {[%emt 0:00:18]} 35. Kh3 {[%emt 0:03:17]} Qd7+ {[%emt 0:00:30]} 36. g4 {[%emt 0:01:00]} h5 {[%emt 0:03:07]} 37. f3 {[%emt 0:12:58]} hxg4+ {[%emt 0:00:18]} 38. fxg4 {[%emt 0:00:09]} b2 {[%emt 0:03:10]} 39. Qb4 {[%emt 0:03:20]} Qxc7 {[%emt 0:00:08]} 40. Qxb2 {[%emt 0:00:03]} Qc4 {[%emt 0:01:15]} 41. Qb8+ {[%emt 0:30:26]} Kg7 {[%emt 0:30:16]} 42. Qe5+ {[%emt 0:00:34]} Kg8 {[%emt 0:02:38]} 43. Qf4 {[%emt 0:00:20]} Qe6 {[%emt 0:01:20]} 44. Kg3 {[%emt 0:03:36]} Qb6 {[%emt 0:02:57]} 45. h4 {[%emt 0:01:23]} Qa5 {[%emt 0:02:19]} 46. Kh3 {[%emt 0:02:43]} Qd5 {[%emt 0:01:40]} 47. Qf2 {[%emt 0:01:44]} Qe4 {[%emt 0:00:00]} 48. Kg3 {[%emt 0:00:00]} Qe5+ {[%emt 0:00:00]} 49. Qf4 {[%emt 0:00:00]} Qa5 {[%emt 0:00:00]} 50. Qf3 {[%emt 0:00:00]} Qe5+ {[%emt 0:00:00]} 51. Kh3 {[%emt 0:00:00]} Qe6 {[%emt 0:00:00]} 52. Kg3 {[%emt 0:00:00]} Qe5+ {[%emt 0:00:00]} 53. Kg2 {[%emt 0:00:00]} Kg7 {[%emt 0:00:00]} 54. h5 {[%emt 0:00:00]} gxh5 {[%emt 0:00:00]} 55. gxh5 {[%emt 0:00:00]} Qg5+ {[%emt 0:00:00]} 56. Kf2 {[%emt 0:00:00]} f5 {[%emt 0:00:00]} 57. Qg3 {[%emt 0:00:00]} Kh6 {[%emt 0:00:00]} 58. Qxg5+ {[%emt 0:00:00]} Kxg5 {[%emt 0:00:00]} 59. Kf3 {[%emt 0:00:00]} Kxh5 {[%emt 0:00:00]} 60. Kf4 {[%emt 0:00:00]} Kg6 {[%emt 0:00:00]} 61. e4 {[%emt 0:00:00]} fxe4 {[%emt 0:00:00]} 62. Kxe4 {[%emt 0:00:00]} 1/2-1/2

[Event "13th Leiden Crown Group 2019"]
[Site "Leiden"]
[Date "2019.07.14"]
[Round "3.8"]
[White "Ivanov, Sergey"]
[Black "Kollen, Zyon"]
[Result "1-0"]
[ECO "D45"]
[WhiteElo "2496"]
[BlackElo "2362"]
[Annotator "ChessBase"]
[PlyCount "57"]
[EventDate "2019.07.08"]
[EventType "tourn"]
[EventCountry "NED"]
[SourceTitle "playchess.com"]
[Source "ChessBase"]
[SourceQuality "1"]
[TimeControl "40/5400+30:1800+30"]

1. d4 {[%emt 0:00:00]} e6 {[%emt 0:00:00]} 2. c4 {[%emt 0:00:00]} d5 {[%emt 0:00:00]} 3. Nc3 {[%emt 0:00:16]} c6 {[%emt 0:00:00]} 4. e3 {[%emt 0:00:44]} Nf6 {[%emt 0:00:00]} 5. Nf3 {[%emt 0:00:07]} Nbd7 {[%emt 0:00:05]} 6. Qc2 {[%emt 0:00:22]} Bd6 {[%emt 0:01:37]} 7. b3 {[%emt 0:01:01]} b6 {[%emt 0:01:55]} 8. Be2 {[%emt 0:02:37]} Bb7 {[%emt 0:03:59]} 9. O-O {[%emt 0:00:37]} O-O {[%emt 0:02:31]} 10. Bb2 {[%emt 0:00:23]} Re8 {[%emt 0:13:39]} 11. Rad1 {[%emt 0:03:03]} Qc7 {[%emt 0:03:52]} 12. h3 {[%emt 0:07:56]} a6 {[%emt 0:01:41]} 13. e4 {[%emt 0:08:27]} e5 {[%emt 0:08:30]} 14. dxe5 {[%emt 0:06:06]} Nxe5 {[%emt 0:01:14]} 15. Nd4 {[%emt 0:10:30]} dxe4 {[%emt 0:16:04]} 16. Nf5 {[%emt 0:00:58]} Bf8 {[%emt 0:01:00]} 17. Nxe4 {[%emt 0:00:24]} Nxe4 {[%emt 0:00:20]} 18. Qxe4 {[%emt 0:00:09]} Ng6 {[%emt 0:09:40]} 19. Qc2 {[%emt 0:05:28]} c5 {[%emt 0:03:48]} 20. Ne3 {[%emt 0:09:45]} Nf4 {[%emt 0:04:04]} 21. Bg4 {[%emt 0:00:54]} h5 {[%emt 0:02:13]} 22. Rd7 {[%emt 0:05:47]} Qc6 {[%emt 0:00:36]} 23. Qf5 {[%emt 0:00:51]} Rxe3 {[%emt 0:14:56]} 24. Qxf7+ {[%emt 0:01:33]} Kh7 {[%emt 0:00:06]} 25. Bf5+ {[%emt 0:01:13]} Kh6 {[%emt 0:00:14]} 26. Bxg7+ {[%emt 0:01:14]} Kg5 {[%emt 0:00:07]} 27. h4+ {[%emt 0:00:43]} Kxh4 {[%emt 0:00:13]} 28. Qf6+ {[%emt 0:00:33]} Qxf6 {[%emt 0:00:05]} 29. Bxf6# {[%emt 0:00:06]} 1-0

[Event "13th Leiden Crown Group 2019"]
[Site "Leiden"]
[Date "2019.07.14"]
[Round "3.9"]
[White "De Niet, Gert-Michiel"]
[Black "Lai, Hing Ting"]
[Result "0-1"]
[ECO "D38"]
[WhiteElo "2208"]
[BlackElo "2460"]
[Annotator "ChessBase"]
[PlyCount "76"]
[EventDate "2019.07.08"]
[EventType "tourn"]
[EventCountry "NED"]
[SourceTitle "playchess.com"]
[Source "ChessBase"]
[SourceQuality "1"]
[TimeControl "40/5400+30:1800+30"]

1. d4 {[%emt 0:00:00]} Nf6 {[%emt 0:00:00]} 2. c4 {[%emt 0:00:00]} e6 {[%emt 0:00:00]} 3. Nf3 {[%emt 0:00:00]} d5 {[%emt 0:00:31]} 4. Nc3 {[%emt 0:00:00]} Bb4 {[%emt 0:00:12]} 5. Bg5 {[%emt 0:01:04]} h6 {[%emt 0:00:39]} 6. Bxf6 {[%emt 0:00:47]} Qxf6 {[%emt 0:00:07]} 7. e3 {[%emt 0:02:50]} c5 {[%emt 0:01:19]} 8. Rc1 {[%emt 0:04:26]} dxc4 {[%emt 0:04:04]} 9. Bxc4 {[%emt 0:00:54]} O-O {[%emt 0:09:24]} 10. O-O {[%emt 0:29:17]} cxd4 {[%emt 0:03:19]} 11. Nxd4 {[%emt 0:03:04]} Qe7 {[%emt 0:02:15]} 12. Qb3 {[%emt 0:09:07]} Bd6 {[%emt 0:10:38]} 13. Rfd1 {[%emt 0:07:27]} a6 {[%emt 0:01:53]} 14. a4 {[%emt 0:08:37]} Nd7 {[%emt 0:04:39]} 15. Qc2 {[%emt 0:01:12]} Nf6 {[%emt 0:01:51]} 16. Ne4 {[%emt 0:04:52]} Be5 {[%emt 0:02:47]} 17. b3 {[%emt 0:06:34]} Nxe4 {[%emt 0:03:54]} 18. Qxe4 {[%emt 0:00:02]} Bf6 {[%emt 0:00:18]} 19. Nf3 {[%emt 0:03:02]} e5 {[%emt 0:05:46]} 20. Nd2 {[%emt 0:03:03]} Rb8 {[%emt 0:03:55]} 21. Qb1 {[%emt 0:03:42]} Rd8 {[%emt 0:07:23]} 22. Ne4 {[%emt 0:02:26]} Bg4 {[%emt 0:00:09]} 23. f3 {[%emt 0:01:15]} Bf5 {[%emt 0:00:40]} 24. Nxf6+ {[%emt 0:00:21]} Qxf6 {[%emt 0:00:06]} 25. e4 {[%emt 0:00:07]} Be6 {[%emt 0:00:33]} 26. Bxe6 {[%emt 0:03:27]} Qxe6 {[%emt 0:00:06]} 27. Rxd8+ {[%emt 0:00:18]} Rxd8 {[%emt 0:00:07]} 28. Rd1 {[%emt 0:00:06]} Qb6+ {[%emt 0:00:33]} 29. Kf1 {[%emt 0:01:53]} Rc8 {[%emt 0:00:13]} 30. Rc1 {[%emt 0:00:31]} Rxc1+ {[%emt 0:00:17]} 31. Qxc1 {[%emt 0:00:01]} Qxb3 {[%emt 0:00:18]} 32. Qc8+ {[%emt 0:01:28]} Kh7 {[%emt 0:00:02]} 33. a5 {[%emt 0:00:50]} b6 {[%emt 0:04:40]} 34. axb6 {[%emt 0:01:02]} Qb1+ {[%emt 0:00:55]} 35. Ke2 {[%emt 0:00:16]} Qxb6 {[%emt 0:00:01]} 36. Qf5+ {[%emt 0:00:18]} Qg6 {[%emt 0:00:02]} 37. Qxe5 {[%emt 0:01:22]} Qxg2+ {[%emt 0:00:07]} 38. Ke3 {[%emt 0:01:27]} Qg5+ {[%emt 0:00:38]} 0-1

[Event "13th Leiden Crown Group 2019"]
[Site "Leiden"]
[Date "2019.07.14"]
[Round "3.10"]
[White "Both, Gert"]
[Black "Bueno, Mark"]
[Result "1/2-1/2"]
[ECO "E34"]
[WhiteElo "1859"]
[BlackElo "1976"]
[Annotator "NA"]
[PlyCount "66"]
[EventDate "2019.07.08"]
[EventType "tourn"]
[EventCountry "NED"]
[SourceTitle "playchess.com"]
[Source "ChessBase"]
[SourceQuality "1"]
[TimeControl "40/5400+30:1800+30"]

1. d4 {[%emt 0:00:00]} Nf6 {[%emt 0:00:00]} 2. c4 {[%emt 0:00:00]} e6 {[%emt 0:00:00]} 3. Nc3 {[%emt 0:00:00]} Bb4 {[%emt 0:00:00]} 4. Qc2 {[%emt 0:00:11]} d5 {[%emt 0:00:00]} 5. e3 {[%emt 0:00:31]} O-O {[%emt 0:00:11]} 6. Bd3 {[%emt 0:01:16]} b6 {[%emt 0:00:56]} 7. Nge2 {[%emt 0:00:54]} Bb7 {[%emt 0:01:37]} 8. O-O {[%emt 0:00:24]} Nbd7 {[%emt 0:00:23]} 9. cxd5 {[%emt 0:00:57]} exd5 {[%emt 0:00:20]} 10. a3 {[%emt 0:02:34]} Bxc3 {[%emt 0:00:32]} 11. Nxc3 {[%emt 0:00:20]} c5 {[%emt 0:00:38]} 12. b3 {[%emt 0:04:06]} Qe7 {[%emt 0:00:46]} 13. a4 {[%emt 0:02:27]} Rac8 {[%emt 0:00:49]} 14. Ba3 {[%emt 0:01:46]} Rfe8 {[%emt 0:00:11]} 15. Qd2 {[%emt 0:09:09]} Qe6 {[%emt 0:05:43]} 16. Rac1 {[%emt 0:10:45]} cxd4 {[%emt 0:06:06]} 17. exd4 {[%emt 0:00:26]} Ne4 {[%emt 0:00:35]} 18. Nxe4 {[%emt 0:03:01]} dxe4 {[%emt 0:00:08]} 19. Bc4 {[%emt 0:07:03]} Bd5 {[%emt 0:04:59]} 20. Rfe1 {[%emt 0:06:15]} Nf6 {[%emt 0:00:57]} 21. Rc3 {[%emt 0:04:54]} Bxc4 {[%emt 0:05:15]} 22. bxc4 {[%emt 0:00:10]} Rxc4 {[%emt 0:00:41]} 23. d5 {[%emt 0:00:25]} Qc8 {[%emt 0:00:25]} 24. Rxc4 {[%emt 0:01:48]} Qxc4 {[%emt 0:00:04]} 25. d6 {[%emt 0:00:34]} Qxa4 {[%emt 0:01:17]} 26. Bb2 {[%emt 0:01:27]} Qd7 {[%emt 0:16:18]} 27. Rc1 {[%emt 0:11:48]} Rd8 {[%emt 0:17:17]} 28. Rc7 {[%emt 0:02:13]} Qe6 {[%emt 0:06:00]} 29. Rxa7 {[%emt 0:02:06]} h6 {[%emt 0:03:41]} 30. Bxf6 {[%emt 0:02:33]} Qxf6 {[%emt 0:00:06]} 31. d7 {[%emt 0:00:20]} Qc6 {[%emt 0:00:42]} 32. h3 {[%emt 0:01:16]} b5 {[%emt 0:00:31]} 33. Qd4 {[%emt 0:05:54]} b4 {[%emt 0:19:18]} 1/2-1/2

[Event "13th Leiden Crown Group 2019"]
[Site "Leiden"]
[Date "2019.07.15"]
[Round "4.1"]
[White "Kuipers, Stefan"]
[Black "Das, Arghyadip"]
[Result "1/2-1/2"]
[ECO "C13"]
[WhiteElo "2435"]
[BlackElo "2439"]
[Annotator "ChessBase"]
[PlyCount "29"]
[EventDate "2019.07.08"]
[EventType "tourn"]
[EventCountry "NED"]
[SourceTitle "playchess.com"]
[Source "ChessBase"]
[SourceQuality "1"]
[TimeControl "40/5400+30:1800+30"]

1. e4 {[%emt 0:00:00]} e6 {[%emt 0:00:00]} 2. d4 {[%emt 0:00:00]} d5 {[%emt 0:00:00]} 3. Nc3 {[%emt 0:00:00]} Nf6 {[%emt 0:00:00]} 4. Bg5 {[%emt 0:00:05]} dxe4 {[%emt 0:00:11]} 5. Nxe4 {[%emt 0:00:09]} Be7 {[%emt 0:00:04]} 6. Nxf6+ {[%emt 0:03:56]} Bxf6 {[%emt 0:00:29]} 7. Bxf6 {[%emt 0:00:37]} Qxf6 {[%emt 0:00:06]} 8. Nf3 {[%emt 0:00:15]} c5 {[%emt 0:02:20]} 9. Qd3 {[%emt 0:09:10]} Nc6 {[%emt 0:31:29]} 10. O-O-O {[%emt 0:06:45]} cxd4 {[%emt 0:03:20]} 11. Qe4 {[%emt 0:04:52]} Bd7 {[%emt 0:02:55]} 12. Nxd4 {[%emt 0:04:23]} Nxd4 {[%emt 0:03:44]} 13. Rxd4 {[%emt 0:00:19]} Bc6 {[%emt 0:00:28]} 14. Qe3 {[%emt 0:01:14]} O-O {[%emt 0:01:05]} 15. f3 {[%emt 0:05:05]} 1/2-1/2

[Event "13th Leiden Crown Group 2019"]
[Site "Leiden"]
[Date "2019.07.15"]
[Round "4.2"]
[White "Van der Wiel, John T.H."]
[Black "Stefansson, Hannes"]
[Result "1/2-1/2"]
[ECO "C68"]
[WhiteElo "2380"]
[BlackElo "2562"]
[Annotator "ChessBase"]
[PlyCount "33"]
[EventDate "2019.07.08"]
[EventType "tourn"]
[EventCountry "NED"]
[SourceTitle "playchess.com"]
[Source "ChessBase"]
[SourceQuality "1"]
[TimeControl "40/5400+30:1800+30"]

1. e4 {[%emt 0:00:00]} e5 {[%emt 0:00:00]} 2. Nf3 {[%emt 0:00:00]} Nc6 {[%emt 0:00:02]} 3. Bb5 {[%emt 0:00:00]} a6 {[%emt 0:00:13]} 4. Bxc6 {[%emt 0:00:25]} dxc6 {[%emt 0:00:21]} 5. O-O {[%emt 0:00:12]} Qd6 {[%emt 0:01:00]} 6. d3 {[%emt 0:01:45]} Ne7 {[%emt 0:02:23]} 7. Nbd2 {[%emt 0:01:20]} Ng6 {[%emt 0:02:34]} 8. Nc4 {[%emt 0:07:03]} Qe6 {[%emt 0:01:01]} 9. b3 {[%emt 0:05:55]} c5 {[%emt 0:06:42]} 10. Ne3 {[%emt 0:22:29]} f6 {[%emt 0:05:42]} 11. a3 {[%emt 0:08:17]} Qf7 {[%emt 0:04:41]} 12. Bd2 {[%emt 0:14:01]} Be6 {[%emt 0:05:54]} 13. b4 {[%emt 0:00:33]} b6 {[%emt 0:12:02]} 14. Kh1 {[%emt 0:05:06]} Bd6 {[%emt 0:01:51]} 15. bxc5 {[%emt 0:02:29]} bxc5 {[%emt 0:00:17]} 16. Bc3 {[%emt 0:04:39]} O-O {[%emt 0:13:08]} 17. Nd2 {[%emt 0:00:24]} 1/2-1/2

[Event "13th Leiden Crown Group 2019"]
[Site "Leiden"]
[Date "2019.07.17"]
[Round "5.1"]
[White "Pruijssers, Roeland"]
[Black "Kuipers, Stefan"]
[Result "1-0"]
[ECO "B12"]
[WhiteElo "2534"]
[BlackElo "2435"]
[Annotator "ChessBase"]
[PlyCount "93"]
[EventDate "2019.07.08"]
[EventType "tourn"]
[EventCountry "NED"]
[SourceTitle "playchess.com"]
[Source "ChessBase"]
[SourceQuality "1"]
[TimeControl "40/5400+30:1800+30"]

1. e4 {[%emt 0:01:50]} c6 {[%emt 0:00:00]} 2. d4 {[%emt 0:00:09]} d5 {[%emt 0:00:00]} 3. e5 {[%emt 0:00:06]} Bf5 {[%emt 0:00:00]} 4. Nf3 {[%emt 0:00:06]} e6 {[%emt 0:00:00]} 5. Be2 {[%emt 0:00:06]} Ne7 {[%emt 0:00:06]} 6. O-O {[%emt 0:00:21]} Nd7 {[%emt 0:00:15]} 7. c3 {[%emt 0:02:29]} h6 {[%emt 0:02:00]} 8. Nbd2 {[%emt 0:04:22]} g5 {[%emt 0:00:48]} 9. Ne1 {[%emt 0:03:46]} Qc7 {[%emt 0:03:42]} 10. Nb3 {[%emt 0:03:54]} O-O-O {[%emt 0:04:15]} 11. Bd3 {[%emt 0:20:29]} Bg7 {[%emt 0:32:13]} 12. Bxf5 {[%emt 0:12:21]} Nxf5 {[%emt 0:00:24]} 13. Nd3 {[%emt 0:00:15]} c5 {[%emt 0:11:48]} 14. Nbxc5 {[%emt 0:02:53]} Nxc5 {[%emt 0:00:39]} 15. dxc5 {[%emt 0:01:09]} Bxe5 {[%emt 0:03:36]} 16. Qh5 {[%emt 0:00:08]} Bg7 {[%emt 0:04:39]} 17. b4 {[%emt 0:06:57]} Bxc3 {[%emt 0:08:35]} 18. Rb1 {[%emt 0:00:06]} Kb8 {[%emt 0:00:28]} 19. b5 {[%emt 0:04:02]} b6 {[%emt 0:08:32]} 20. Ba3 {[%emt 0:02:18]} g4 {[%emt 0:02:06]} 21. Rfc1 {[%emt 0:07:29]} d4 {[%emt 0:03:45]} 22. cxb6 {[%emt 0:02:39]} axb6 {[%emt 0:02:28]} 23. Nb4 {[%emt 0:01:04]} Ka8 {[%emt 0:00:46]} 24. Qxg4 {[%emt 0:00:48]} Ne7 {[%emt 0:02:07]} 25. Qe4+ {[%emt 0:09:52]} Ka7 {[%emt 0:02:55]} 26. Na6 {[%emt 0:04:27]} Qd7 {[%emt 0:00:25]} 27. Bxe7 {[%emt 0:00:34]} Qxe7 {[%emt 0:00:23]} 28. Nb4 {[%emt 0:00:09]} Bxb4 {[%emt 0:01:10]} 29. Rxb4 {[%emt 0:00:06]} Rd5 {[%emt 0:01:20]} 30. Rbc4 {[%emt 0:01:12]} Kb7 {[%emt 0:01:14]} 31. Qc2 {[%emt 0:00:20]} Rc5 {[%emt 0:00:35]} 32. Qe4+ {[%emt 0:01:24]} Rd5 {[%emt 0:00:08]} 33. Qf4 {[%emt 0:01:53]} e5 {[%emt 0:01:02]} 34. Qe4 {[%emt 0:01:24]} Rhd8 {[%emt 0:00:07]} 35. Rxd4 {[%emt 0:00:49]} Qd6 {[%emt 0:02:40]} 36. Rxd5 {[%emt 0:02:34]} Qxd5 {[%emt 0:00:03]} 37. Qa4 {[%emt 0:00:51]} Kb8 {[%emt 0:00:47]} 38. h3 {[%emt 0:01:03]} Rg8 {[%emt 0:00:56]} 39. g3 {[%emt 0:00:47]} Qd3 {[%emt 0:00:54]} 40. Qc4 {[%emt 0:01:18]} Qxc4 {[%emt 0:01:07]} 41. Rxc4 {[%emt 0:30:06]} Rg6 {[%emt 0:03:33]} 42. Kg2 {[%emt 0:00:00]} Kb7 {[%emt 0:01:47]} 43. f4 {[%emt 0:00:00]} Re6 {[%emt 0:02:07]} 44. Kf3 {[%emt 0:00:00]} f5 {[%emt 0:02:01]} 45. fxe5 {[%emt 0:00:00]} Rxe5 {[%emt 0:00:05]} 46. a4 {[%emt 0:00:00]} Rd5 {[%emt 0:00:05]} 47. Rh4 {[%emt 0:00:00]} 1-0

[Event "13th Leiden Crown Group 2019"]
[Site "Leiden"]
[Date "2019.07.17"]
[Round "5.2"]
[White "Schekachikhin, Maksim"]
[Black "Nikolic, Predrag"]
[Result "0-1"]
[ECO "A80"]
[WhiteElo "2415"]
[BlackElo "2574"]
[Annotator "ChessBase"]
[PlyCount "88"]
[EventDate "2019.07.08"]
[EventType "tourn"]
[EventCountry "NED"]
[SourceTitle "playchess.com"]
[Source "ChessBase"]
[SourceQuality "1"]
[TimeControl "40/5400+30:1800+30"]

1. d4 {[%emt 0:00:00]} f5 {[%emt 0:00:00]} 2. Bf4 {[%emt 0:00:47]} Nf6 {[%emt 0:00:10]} 3. e3 {[%emt 0:00:29]} g6 {[%emt 0:00:27]} 4. Nf3 {[%emt 0:02:28]} Bg7 {[%emt 0:01:16]} 5. Bc4 {[%emt 0:00:33]} d6 {[%emt 0:01:35]} 6. h3 {[%emt 0:01:01]} e6 {[%emt 0:00:18]} 7. g4 {[%emt 0:02:02]} Qe7 {[%emt 0:01:43]} 8. gxf5 {[%emt 0:07:10]} exf5 {[%emt 0:00:10]} 9. Nc3 {[%emt 0:01:51]} Nbd7 {[%emt 0:05:06]} 10. Qe2 {[%emt 0:23:42]} Nb6 {[%emt 0:00:36]} 11. Bb3 {[%emt 0:00:21]} Be6 {[%emt 0:01:22]} 12. Bxe6 {[%emt 0:04:13]} Qxe6 {[%emt 0:00:07]} 13. Ng5 {[%emt 0:00:21]} Qd7 {[%emt 0:02:28]} 14. O-O-O {[%emt 0:06:25]} h6 {[%emt 0:02:36]} 15. Nf3 {[%emt 0:00:49]} g5 {[%emt 0:00:11]} 16. Bh2 {[%emt 0:06:22]} O-O-O {[%emt 0:00:18]} 17. h4 {[%emt 0:03:20]} g4 {[%emt 0:00:49]} 18. Ne1 {[%emt 0:00:06]} h5 {[%emt 0:03:02]} 19. Nd3 {[%emt 0:02:51]} Ne4 {[%emt 0:00:50]} 20. Nxe4 {[%emt 0:03:45]} fxe4 {[%emt 0:00:12]} 21. Nf4 {[%emt 0:00:06]} d5 {[%emt 0:01:47]} 22. Kb1 {[%emt 0:04:03]} Rh6 {[%emt 0:03:24]} 23. b3 {[%emt 0:05:41]} Bf8 {[%emt 0:02:25]} 24. c3 {[%emt 0:03:55]} Ba3 {[%emt 0:02:47]} 25. Rd2 {[%emt 0:04:40]} a5 {[%emt 0:05:02]} 26. Rc2 {[%emt 0:02:06]} a4 {[%emt 0:04:33]} 27. b4 {[%emt 0:01:19]} Nc4 {[%emt 0:02:04]} 28. Ka1 {[%emt 0:00:51]} b6 {[%emt 0:00:26]} 29. Rb1 {[%emt 0:01:35]} Kb7 {[%emt 0:00:14]} 30. Qd1 {[%emt 0:01:36]} Rf8 {[%emt 0:00:39]} 31. Bg3 {[%emt 0:01:10]} Qb5 {[%emt 0:02:15]} 32. Qe2 {[%emt 0:01:44]} Rf5 {[%emt 0:00:31]} 33. Bh2 {[%emt 0:02:26]} Nd6 {[%emt 0:08:37]} 34. c4 {[%emt 0:03:19]} Nxc4 {[%emt 0:08:35]} 35. Nxd5 {[%emt 0:00:32]} Qxd5 {[%emt 0:00:28]} 36. Rxc4 {[%emt 0:01:28]} Rc6 {[%emt 0:00:14]} 37. Rxc6 {[%emt 0:01:14]} Qxc6 {[%emt 0:00:07]} 38. Qd2 {[%emt 0:00:12]} Rb5 {[%emt 0:02:03]} 39. Be5 {[%emt 0:00:34]} Qc4 {[%emt 0:01:01]} 40. d5 {[%emt 0:00:56]} Rxd5 {[%emt 0:01:03]} 41. Bd4 {[%emt 0:31:39]} Qd3 {[%emt 0:30:51]} 42. Qxd3 {[%emt 0:00:00]} exd3 {[%emt 0:00:00]} 43. b5 {[%emt 0:00:00]} Rf5 {[%emt 0:00:00]} 44. e4 {[%emt 0:00:00]} Rf4 {[%emt 0:00:00]} 0-1

[Event "13th Leiden Crown Group 2019"]
[Site "Leiden"]
[Date "2019.07.17"]
[Round "5.3"]
[White "Sengupta, Deep"]
[Black "Pijpers, Arthur"]
[Result "1-0"]
[ECO "B60"]
[WhiteElo "2558"]
[BlackElo "2474"]
[Annotator "ChessBase"]
[PlyCount "73"]
[EventDate "2019.07.08"]
[EventType "tourn"]
[EventCountry "NED"]
[SourceTitle "playchess.com"]
[Source "ChessBase"]
[SourceQuality "1"]
[TimeControl "40/5400+30:1800+30"]

1. e4 {[%emt 0:00:00]} c5 {[%emt 0:00:00]} 2. Nf3 {[%emt 0:00:00]} d6 {[%emt 0:00:00]} 3. d4 {[%emt 0:00:00]} cxd4 {[%emt 0:00:00]} 4. Nxd4 {[%emt 0:00:00]} Nf6 {[%emt 0:00:00]} 5. Nc3 {[%emt 0:00:01]} Nc6 {[%emt 0:00:00]} 6. Bg5 {[%emt 0:00:25]} e6 {[%emt 0:00:00]} 7. Qd2 {[%emt 0:00:03]} Qb6 {[%emt 0:00:00]} 8. Nb3 {[%emt 0:11:48]} Be7 {[%emt 0:00:17]} 9. Be2 {[%emt 0:03:27]} O-O {[%emt 0:07:30]} 10. Be3 {[%emt 0:02:40]} Qc7 {[%emt 0:00:32]} 11. g4 {[%emt 0:00:04]} d5 {[%emt 0:15:26]} 12. exd5 {[%emt 0:02:12]} Nxd5 {[%emt 0:03:11]} 13. Nxd5 {[%emt 0:00:06]} exd5 {[%emt 0:00:04]} 14. O-O-O {[%emt 0:00:53]} Rd8 {[%emt 0:11:31]} 15. Nd4 {[%emt 0:01:44]} a6 {[%emt 0:01:32]} 16. h3 {[%emt 0:15:55]} Bd7 {[%emt 0:12:28]} 17. Rhe1 {[%emt 0:03:21]} Ne5 {[%emt 0:04:24]} 18. Bf4 {[%emt 0:05:35]} Bd6 {[%emt 0:00:38]} 19. Bg3 {[%emt 0:00:18]} Rac8 {[%emt 0:04:47]} 20. Kb1 {[%emt 0:03:10]} b5 {[%emt 0:10:40]} 21. Bf1 {[%emt 0:01:56]} Re8 {[%emt 0:11:44]} 22. Re3 {[%emt 0:09:34]} Nc4 {[%emt 0:00:26]} 23. Bxc4 {[%emt 0:03:12]} Rxe3 {[%emt 0:19:23]} 24. fxe3 {[%emt 0:19:55]} dxc4 {[%emt 0:00:00]} 25. Nf5 {[%emt 0:06:57]} Bxg3 {[%emt 0:00:00]} 26. Ne7+ {[%emt 0:00:19]} Kf8 {[%emt 0:00:00]} 27. Nxc8 {[%emt 0:00:04]} Ke8 {[%emt 0:00:00]} 28. Nd6+ {[%emt 0:01:19]} Ke7 {[%emt 0:00:00]} 29. Ne4 {[%emt 0:01:39]} Be5 {[%emt 0:00:00]} 30. Qb4+ {[%emt 0:00:22]} Ke8 {[%emt 0:00:00]} 31. Nd6+ {[%emt 0:01:07]} Bxd6 {[%emt 0:00:00]} 32. Qxd6 {[%emt 0:00:05]} Qxd6 {[%emt 0:00:00]} 33. Rxd6 {[%emt 0:00:05]} Bc8 {[%emt 0:00:00]} 34. a4 {[%emt 0:00:19]} Ke7 {[%emt 0:00:00]} 35. Rc6 {[%emt 0:00:13]} Kd7 {[%emt 0:00:00]} 36. axb5 {[%emt 0:00:05]} axb5 {[%emt 0:00:00]} 37. Rb6 {[%emt 0:00:04]} 1-0